Cogmind - Beta 9.6 @@@ ROGUE MODE // 2020.05.03 @ 14:54:42 Player: SURFACESEEKER Result: Destroyed by P-70 Sage with High-powered Shock Rifle Performance ------------- Evolutions (5) 2500 Regions Visited (7) 1400 Robots Destroyed (89) 445 Value Destroyed (2659) 2659 Prototype IDs (2) 40 Alien Tech Used (0) 0 Bonus (11) 11 TOTAL SCORE: 7055 Bonus ------- High Alert Combat Kills 11 Cogmind --------- Core Integrity 0/1000 Matter 197/300 Energy 54/600 System Corruption 6% Temperature Cool (0) Movement Rolling (90) Location -5/Factory Parts ------- > --- POWER (2) -------- (None) > --- PROPULSION (6) --- Centrium Wheel Centrium Wheel Centrium Wheel Centrium Wheel Centrium Wheel Centrium Wheel > --- UTILITY (6) ------ Large Storage Unit Energy Well Terrain Scan Processor Improved Weapon Shielding Insulated Plating Insulated Plating > --- WEAPON (3) ------- Long-range Proton Cannon Heavy Assault Rifle Gauss Rifle > --- INVENTORY (10) --- Medium Treads Flexi-carbon Leg Flexi-carbon Leg Improved Heat Sink Medium Storage Unit Large Storage Unit Neutron Cannon Heavy Missile Launcher Heavy Missile Launcher Peak State ------------ > --- POWER ------------ (None) > --- PROPULSION ------- Centrium Wheel Centrium Wheel Centrium Wheel Centrium Wheel Centrium Wheel Centrium Wheel > --- UTILITY ---------- Large Storage Unit Energy Well Terrain Scan Processor Improved Weapon Shielding Insulated Plating Insulated Plating > --- WEAPON ----------- Long-range Proton Cannon Heavy Assault Rifle Gauss Rifle > --- INVENTORY -------- Medium Treads Flexi-carbon Leg Flexi-carbon Leg Improved Heat Sink Medium Storage Unit Large Storage Unit Neutron Cannon Heavy Missile Launcher Heavy Missile Launcher [Rating: 74] Favorites ----------- Power Improved Ion Engine Engine Improved Ion Engine Power Core Light Nuclear Core Propulsion Aluminum Leg Treads Light Treads Leg Aluminum Leg Wheel Centrium Wheel Utility Seismic Analyzer Device Improved Heat Sink Storage Large Storage Unit Processor Seismic Analyzer Hackware System Shield Protection Insulated Plating Weapon Katana Energy Gun Shock Rifle Energy Cannon Improved EM Pulse Cannon Ballistic Gun Assault Rifle Ballistic Cannon Assault Cannon Slashing Weapon Katana Build | -11 -10 -9 -9 -8 -7 -6 -5 ------- Run | Scr Mat Mat Min Mat Fac Fac Fac Slots Evolved 10 | . . 2 . 2 2 2 2 Power 1 | . . . . . 1 . . Propulsion 4 | . . . . 2 . 2 . Utility 4 | . . 2 . . 1 . 1 Weapon 1 | . . . . . . . 1 Parts Attached 127 | 8 1 2 1 36 11 22 46 Power 16 | 1 . . . 5 1 5 4 Engine 8 | 1 . . . 2 . 4 1 Core 8 | . . . . 3 1 1 3 Reactor . | . . . . . . . . Propulsion 40 | 2 . . . 12 2 9 15 Treads 14 | . . . . 4 . 3 7 Leg 19 | 2 . . . 8 2 5 2 Wheel 7 | . . . . . . 1 6 Hover . | . . . . . . . . Flight . | . . . . . . . . Utility 41 | 2 1 2 . 11 4 7 14 Device 17 | 1 1 . . 5 1 4 5 Storage 9 | . . 1 . 2 1 2 3 Processor 6 | 1 . . . 1 1 1 2 Hackware 1 | . . . . . . . 1 Protection 8 | . . 1 . 3 1 . 3 Artifact . | . . . . . . . . Weapon 30 | 3 . . 1 8 4 1 13 Energy Gun 8 | 1 . . . 2 1 . 4 Energy Cannon 4 | . . . . 2 1 . 1 Ballistic Gun 8 | 2 . . 1 . . 1 4 Ballistic Cannon 4 | . . . . 4 . . . Launcher . | . . . . . . . . Special Weapon . | . . . . . . . . Impact Weapon . | . . . . . . . . Slashing Weapon 6 | . . . . . 2 . 4 Piercing Weapon . | . . . . . . . . Special Melee Weapon . | . . . . . . . . Unidentified Prototypes 2 | . . . . 1 . . 1 Parts Lost 44 | . . 1 . 4 2 14 23 Power 7 | . . . . . 1 2 4 Propulsion 16 | . . . . 1 . 9 6 Utility 11 | . . . . 3 1 2 5 Weapon 10 | . . 1 . . . 1 8 Highest Loss Streak 20 | . . 1 . 2 1 5 20 Average Slot Usage (%) 89 | . 99 97 100 95 89 86 77 Engine 7 | . 14 11 11 6 7 10 2 Core 2 | . . . . 2 5 1 2 Treads 6 | . . . . 7 . 1 14 Leg 20 | . 28 22 22 26 26 27 3 Wheel 1 | . . . . . . . 4 Device 9 | . 13 11 11 10 3 9 7 Storage 7 | . . 11 11 9 7 6 6 Processor 10 | . 14 11 11 9 14 12 10 Protection 5 | . . 8 11 6 6 2 5 Energy Gun 1 | . 14 11 . . 1 3 . Energy Cannon 4 | . . . . 9 9 . 1 Ballistic Gun 5 | . 14 11 22 3 . 1 4 Ballistic Cannon 1 | . . . . 4 . . . Slashing Weapon 3 | . . . . . 3 6 8 Naked Turns . | . . . . . . . . Heaviest Build 56 | 10 10 21 22 42 50 51 56 Greatest Support 139 | 20 20 20 20 60 53 78 139 Greatest Overweight (x) 10 | . . 1 1 2 1 3 10 Average Overweight (x) . | . . . 1 . . . . Largest Inventory Capacity 16 | 4 4 6 6 10 12 14 16 Average Capacity 8 | 4 4 6 6 7 10 10 11 Most Carried 10 | 4 4 6 6 10 10 10 10 Average Carried 7 | 3 3 4 4 6 9 9 7 Final Capacity 10 | 4 4 6 6 10 10 10 10 Final Carried 10 | 4 4 5 6 10 10 9 9 Class Distribution -------------------- 66% | Scavenger-Mutant 29% | Mutant Dominant Class ---------------- Mutant | -10/Materials Mutant | -9/Materials Mutant | -9/Mines Scavenger-Mutant | -8/Materials Scavenger-Mutant | -7/Factory Scavenger-Mutant | -6/Factory Scavenger-Mutant | -5/Factory Resources | -11 -10 -9 -9 -8 -7 -6 -5 ----------- Run | Scr Mat Mat Min Mat Fac Fac Fac Matter Collected 2007 | 245 144 30 69 770 125 186 438 Remotely . | . . . . . . . . Salvage Created 3371 | 118 144 51 75 1124 148 985 726 Parts 211 | 10 11 3 8 70 12 49 48 Haulers Intercepted 3 | . . . . 3 . . . Recyclers Shooed 6 | 1 . . 1 3 . 1 . Parts Field Recycled . | . . . . . . . . Retrieved Matter . | . . . . . . . . Parts Self-Destructed . | . . . . . . . . Prevented . | . . . . . . . . Kills | -11 -10 -9 -9 -8 -7 -6 -5 ------- Run | Scr Mat Mat Min Mat Fac Fac Fac Combat Hostiles Destroyed 63 | . 5 3 3 22 5 10 15 Melee 21 | . . . . . 1 10 10 Guns 14 | . 3 2 3 2 . . 4 Cannons 21 | . . . . 20 1 . . AOE 6 | . 2 1 . . 2 . 1 Classes Destroyed 12 | 1 2 . 1 6 1 1 . Worker 6 | . . . 1 . . 3 2 Builder 4 | . . . . 1 . 2 1 Tunneler 8 | 5 . . . 3 . . . Hauler 3 | . . . . 3 . . . Recycler 3 | . . . . . . 3 . Mechanic 1 | . . . . 1 . . . Operator 1 | . . . . 1 . . . Swarmer 26 | . 3 3 3 3 3 3 8 Grunt 18 | . 2 . . 11 . 4 1 Sentry 10 | . . . . 7 . 1 2 Hunter 4 | . . . . 1 1 . 2 Programmer 5 | . . . . . 1 2 2 Best Kill Streak 5 | 2 3 3 4 5 3 5 5 Combat Bots Only 5 | . 3 3 3 5 3 3 5 Max Kills in Single Turn 2 | 1 2 1 2 1 2 1 1 Gunslinging 1 | . . . 1 . . . . Exploded 2 | . 2 1 . . 1 . 1 Melee 1 | . . . . . 1 1 1 Uniques/NPCs Destroyed . | . . . . . . . . Combat | -11 -10 -9 -9 -8 -7 -6 -5 -------- Run | Scr Mat Mat Min Mat Fac Fac Fac Damage Taken 7410 | . 176 113 42 1464 650 1416 3549 Core 1628 | . 31 10 16 159 157 241 1014 Absorbed by Shields . | . . . . . . . . Core Remaining (%) 83 | 100 87 . 93 71 77 71 . Volleys Fired 180 | 22 10 7 6 87 12 2 34 Largest 3 | 2 2 2 2 2 2 1 3 Hottest 142 | 60 60 60 43 138 138 30 142 Shots Fired 342 | 44 20 14 12 163 24 2 63 Gun 210 | 44 20 14 12 56 . 2 62 Cannon 132 | . . . . 107 24 . 1 Launcher . | . . . . . . . . Special . | . . . . . . . . Kinetic 232 | 42 10 7 12 114 . 2 45 Thermal 3 | . . . . . . . 3 Explosive . | . . . . . . . . Electromagnetic 107 | 2 10 7 . 49 24 . 15 Robot Hit Streak 23 | 6 8 5 3 21 7 . 23 Robot Miss Streak 5 | 4 2 3 4 5 1 2 5 Penetration Max . | . . . . . . . . Secondary Targets 2 | . . . 1 . . . 1 Max Gunslinging Chain 1 | . . . 1 . . . 1 Shots Hit Robots 331 | 23 14 8 4 109 20 68 85 Core Hits 131 | 8 6 3 4 42 8 24 36 Critical Hits 8 | 2 . . . 1 1 2 2 Critical Kills 2 | . . . . . . 1 1 Critical Parts Destroyed 6 | 2 . . . 1 1 1 1 Melee Attacks 125 | . . . . . 3 79 43 Impact . | . . . . . . . . Slashing 125 | . . . . . 3 79 43 Piercing . | . . . . . . . . Sneak Attacks 16 | . . . . . . 12 4 Combat Hostiles . | . . . . . . . . Follow-up Attacks 6 | . . . . . . . 6 Damage Inflicted 9350 | 234 243 88 83 2393 615 3139 2555 Guns 1928 | 234 157 67 83 499 . 25 863 Cannons 2094 | . . . . 1848 211 . 35 Explosions 525 | . 86 21 . 38 315 . 65 Melee 4745 | . . . . . 89 3114 1542 Ramming 58 | . . . . 8 . . 50 Kinetic 2512 | 219 49 21 83 1435 . 25 680 Thermal 358 | . 86 21 . 38 100 . 113 Explosive 215 | . . . . . 215 . . Electromagnetic 1462 | 15 108 46 . 912 211 . 170 Impact . | . . . . . . . . Slashing 4745 | . . . . . 89 3114 1542 Piercing . | . . . . . . . . Highest Corruption 6 | . . . . . 6 1 6 Average Corruption 2 | . . . . . 5 1 3 Corruption Purged . | . . . . . . . . Effects 13 | . . . . . 3 4 6 Message Errors 1 | . . . . . . 1 . Matter Fused 5 | . . . . . 1 . 4 Heat Flow Errors 2 | . . . . . 1 . 1 Energy Discharges 1 | . . . . . . 1 . Data Loss (minor) 2 | . . . . . . 1 1 Data Loss (major) 1 | . . . . . 1 . . Targeting Errors 1 | . . . . . . 1 . Overload Shots . | . . . . . . . . Overflow Damage 516 | . . . . 33 7 359 117 Projectiles 33 | . . . . 33 . . . Explosions 7 | . . . . . 7 . . Melee 476 | . . . . . . 359 117 Knockbacks 12 | . . . . 11 . . 1 Impact 1 | . . . . . . . 1 Kinetic 10 | . . . . 10 . . . Secondary 1 | . . . . 1 . . . Self-Inflicted Damage 308 | . 39 . . 33 147 . 89 Shots 6 | . 1 . . 1 3 . 1 Rammed 11 | . . . . 1 . . 10 Targets Rammed 14 | . . . . 3 . . 11 Kicked 3 | . . . . 2 . . 1 Crushed . | . . . . . . . . Highest Temperature 324 | . 39 . . 144 324 . 242 Average Temperature 69 | . 21 . . 34 138 . 47 Received Heat Transfer 1023 | . 27 9 . 540 . 357 90 Siege Activations . | . . . . . . . . Robots Corrupted 1 | . . . . . 1 . . Combat Hostiles 1 | . . . . . 1 . . Parts Fried 9 | . . . . 6 . . 3 Impact Corruptions 1 | . . . . . . . 1 Robots Melted . | . . . . . . . . Combat Hostiles . | . . . . . . . . Parts Melted . | . . . . . . . . Heat Transferred 474 | . 100 50 . 50 150 . 124 Parts Sabotaged . | . . . . . . . . Parts Stolen . | . . . . . . . . Parts Stripped . | . . . . . . . . Power Chain Reactions 5 | . 1 1 . 1 1 . 1 Missiles Intercepted . | . . . . . . . . Alert | -11 -10 -9 -9 -8 -7 -6 -5 ------- Run | Scr Mat Mat Min Mat Fac Fac Fac Peak Influence 424 | 25 166 154 130 424 358 135 261 Average Influence 130 | 12 104 104 94 185 299 80 90 Maximum Alert Level 2 | . . . . 2 1 . 1 Low Security (%) 75 | 100 100 100 100 45 20 100 92 Level 1 22 | . . . . 49 79 . 7 Level 2 1 | . . . . 4 . . . Level 3 . | . . . . . . . . Level 4 . | . . . . . . . . Level 5 . | . . . . . . . . High Security . | . . . . . . . . Max Security . | . . . . . . . . Squads Dispatched 10 | . . . . 4 1 2 3 Investigation 1 | . . . . 1 . . . Extermination 3 | . . . . . 1 1 1 Reinforcement 6 | . . . . 3 . 1 2 Assault . | . . . . . . . . Garrison . | . . . . . . . . Intercept . | . . . . . . . . Construction Impeded 1 | . . . . 1 . . . Haulers Reinforced . | . . . . . . . . Stealth | -11 -10 -9 -9 -8 -7 -6 -5 --------- Run | Scr Mat Mat Min Mat Fac Fac Fac Distress Signals 6 | . 1 1 . . . 3 1 Communications Jammed . | . . . . . . . . Distress Signals . | . . . . . . . . Times Spotted 111 | . 8 5 3 32 8 21 34 Peak Tracking Total 7 | . 4 2 3 5 3 6 7 Tactical Retreats 14 | . . . . 3 . 3 8 Traps | -11 -10 -9 -9 -8 -7 -6 -5 ------- Run | Scr Mat Mat Min Mat Fac Fac Fac Traps Triggered 3 | . . . . . . 3 . Indirectly . | . . . . . . . . Trap Hack Attempts . | . . . . . . . . Triggered . | . . . . . . . . Disarmed . | . . . . . . . . Reprogrammed . | . . . . . . . . Reused . | . . . . . . . . Traps Extracted . | . . . . . . . . Installed . | . . . . . . . . Triggered . | . . . . . . . . Machines | -11 -10 -9 -9 -8 -7 -6 -5 ---------- Run | Scr Mat Mat Min Mat Fac Fac Fac Machines Disabled 9 | . . 1 . 4 3 . 1 Max in Single Turn 3 | . . 1 . 2 3 . 1 Machines Sabotaged . | . . . . . . . . Garrisons Compromised . | . . . . . . . . Overloaded Fab Kills . | . . . . . . . . Fab Network Shutdowns . | . . . . . . . . Hacking | -11 -10 -9 -9 -8 -7 -6 -5 --------- Run | Scr Mat Mat Min Mat Fac Fac Fac Machines Accessed 14 | . 2 1 . 4 1 2 4 Terminals 7 | . 2 . . 2 1 1 1 Fabricators 2 | . . . . . . . 2 Repair Stations 1 | . . . . 1 . . . Recycling Units 2 | . . 1 . . . 1 . Scanalyzers 2 | . . . . 1 . . 1 Garrison Access . | . . . . . . . . Total Hacks 32 | . 3 3 . 9 1 2 14 Successful 18 | . 1 2 . 7 1 1 6 Failed 14 | . 2 1 . 2 . 1 8 Catastrophic 1 | . . . . . . . 1 Database Lockouts . | . . . . . . . . Manual 14 | . 3 . . 4 1 1 5 Terminals 10 | . 3 . . 4 1 1 1 Fabricators 9 | . . . . . . . 9 Repair Stations 2 | . . . . 2 . . . Recycling Units 4 | . . 3 . . . 1 . Scanalyzers 7 | . . . . 3 . . 4 Garrison Access . | . . . . . . . . Terminal Hacks . | . . . . . . . . Fabricator Hacks 3 | . . . . . . . 3 Build 3 | . . . . . . . 3 Repair Station Hacks 2 | . . . . 2 . . . Scan Component 1 | . . . . 1 . . . Repair 1 | . . . . 1 . . . Recycling Unit Hacks 2 | . . 2 . . . . . Report Inventory 1 | . . 1 . . . . . Retrieve Components 1 | . . 1 . . . . . Scanalyzer 4 | . . . . 3 . . 1 Insert Component 3 | . . . . 2 . . 1 Analyze 1 | . . . . 1 . . . Garrison Access Hacks . | . . . . . . . . Unauthorized Hacks 7 | . 1 . . 2 1 1 2 Terminals 6 | . 1 . . 2 1 1 1 Track 6 | . 1 . . 2 1 1 1 Fabricators 1 | . . . . . . . 1 Prioritize 1 | . . . . . . . 1 Repair Stations . | . . . . . . . . Recycling Units . | . . . . . . . . Scanalyzers . | . . . . . . . . Garrison Access . | . . . . . . . . Data Cores Recovered . | . . . . . . . . Used . | . . . . . . . . Hacking Detections 10 | . 1 1 . 4 . 1 3 Full Trace Events 1 | . . . . 1 . . . Feedback Events . | . . . . . . . . Feedback Blocked . | . . . . . . . . Robot Schematics Acquired . | . . . . . . . . Robots Built . | . . . . . . . . Matter . | . . . . . . . . Time . | . . . . . . . . Total Robot Build Rating . | . . . . . . . . Part Schematics Acquired 1 | . . . . 1 . . . Parts Built 6 | . . . . . . . 6 Matter 702 | . . . . . . . 702 Time 87 | . . . . . . . 87 Total Part Build Rating 42 | . . . . . . . 42 Parts Repaired 1 | . . . . 1 . . . Time 26 | . . . . 26 . . . Parts Recycled . | . . . . . . . . Recycled Matter . | . . . . . . . . Retrieved Matter . | . . . . . . . . Retrieved Components 3 | . . 3 . . . . . Parts Scanalyzed 2 | . . . . 1 . . 1 Part Schematics Acquired 1 | . . . . 1 . . . Parts Damaged . | . . . . . . . . Bothacking | -11 -10 -9 -9 -8 -7 -6 -5 ------------ Run | Scr Mat Mat Min Mat Fac Fac Fac Used RIF Installer . | . . . . . . . . Robots Hacked . | . . . . . . . . Non-combat . | . . . . . . . . Combat . | . . . . . . . . Robot Hacks Applied . | . . . . . . . . Relay Couplers Released . | . . . . . . . . Robots Rewired . | . . . . . . . . Allies Hacked . | . . . . . . . . Hacks Repelled . | . . . . . . . . Allies | -11 -10 -9 -9 -8 -7 -6 -5 -------- Run | Scr Mat Mat Min Mat Fac Fac Fac Total Allies . | . . . . . . . . Largest Group . | . . . . . . . . Highest-Rated Group . | . . . . . . . . Highest-Rated Ally . | . . . . . . . . Total Orders . | . . . . . . . . Ally Attacks . | . . . . . . . . Total Damage . | . . . . . . . . Kills . | . . . . . . . . Allies Corrupted . | . . . . . . . . Allies Melted . | . . . . . . . . Intel | -11 -10 -9 -9 -8 -7 -6 -5 ------- Run | Scr Mat Mat Min Mat Fac Fac Fac Robot Analysis Total . | . . . . . . . . Derelict Logs Recovered . | . . . . . . . . Drone Launches . | . . . . . . . . Drone Recoveries . | . . . . . . . . Exploration | -11 -10 -9 -9 -8 -7 -6 -5 ------------- Run | Scr Mat Mat Min Mat Fac Fac Fac Turns Passed 5764 | 237 215 161 417 1737 440 1188 1369 Spaces Moved 2984 | 140 114 93 236 942 188 702 569 Core 18 | 15 . . . . . . 3 Treads 679 | . . . . 210 . 69 400 Legs 2218 | 125 114 93 236 732 188 633 97 Wheels 69 | . . . . . . . 69 Hover . | . . . . . . . . Flight . | . . . . . . . . Fastest Speed 50 | 50 120 120 150 120 120 120 90 Average Speed 135 | 112 120 140 150 131 137 128 153 Slowest Speed 550 | 120 120 150 150 180 150 210 550 Overloaded Moves . | . . . . . . . . Propulsion Burnouts . | . . . . . . . . Robots Hopped . | . . . . . . . . Cave-ins Triggered . | . . . . . . . . Exploration Rate (%) 16 | 6 20 11 29 34 3 14 11 Regions Visited 7 Branch Regions 1 Pre-discovered Areas . | . . . . . . . . Known Exits Taken . | . . . . . . . . Unknown Exits Taken 7 | 1 1 1 1 1 1 1 . Scrap Searched . | . . . . . . . . Spaces Dug . | . . . . . . . . Terrain Destroyed 73 | . 2 3 . 28 32 . 8 Melee . | . . . . . . . . Projectile 14 | . . . . 11 . . 3 AOE 59 | . 2 3 . 17 32 . 5 Actions | -11 -10 -9 -9 -8 -7 -6 -5 --------- Run | Scr Mat Mat Min Mat Fac Fac Fac Total 4175 | 178 172 110 287 1278 341 874 935 Wait 598 | . 45 4 43 155 117 38 196 Move 2977 | 139 113 92 235 941 187 701 569 Hop . | . . . . . . . . Pick Up 95 | 9 1 4 2 23 6 17 33 Fast Attach 33 | 2 1 . . 20 1 5 4 Attach 58 | 5 . 2 1 2 6 15 27 Detach 4 | . . . . . 1 2 1 Swap 37 | 1 . . . 14 4 2 16 Drop 62 | . 2 1 . 33 4 10 12 Fire 180 | 22 10 7 6 87 12 2 34 Melee 114 | . . . . . 3 79 32 Ram 9 | . . . . . . . 9 Kick 5 | . . . . 3 . . 2 Crush . | . . . . . . . . Escape Stasis 3 | . . . . . . 3 . Rewire . | . . . . . . . . Trap . | . . . . . . . . Miscellaneous . | . . . . . . . . Route ------- -11/Scrapyard -10/Materials -9/Materials -9/Mines -8/Materials -7/Factory -6/Factory -5/Factory History --------- Turn | Location | Event 9 | -11/Scrapyard | Discovered new exit (range 15) 238 | -11/Scrapyard | Entered Materials 324 | -10/Materials | Build established: Mutant 439 | -10/Materials | Discovered new exit (range 8) 453 | -10/Materials | Entered another Materials area 453 | -9/Materials | Evolved 2 slots: Utility x2 592 | -9/Materials | Discovered new exit (range 15) 614 | -9/Materials | Entered Mines 820 | -9/Mines | Found a hidden stash of uninstalled traps 834 | -9/Mines | Discovered new exit (range 7) 1031 | -9/Mines | Entered Materials 1031 | -8/Materials | Evolved 2 slots: Propulsion x2 1760 | -8/Materials | Build established: Scavenger-Mutant 2141 | -8/Materials | Repaired Sml. Storage Unit 2764 | -8/Materials | Discovered new exit (range 3) 2768 | -8/Materials | Entered Factory 2768 | -7/Factory | Evolved 2 slots: Power x1, Utility x1 3199 | -7/Factory | Discovered new exit (range 5) 3208 | -7/Factory | Entered another Factory area 3208 | -6/Factory | Evolved 2 slots: Propulsion x2 4020 | -6/Factory | Lost 5 parts (3n1u1w) 4202 | -6/Factory | Lost 5 parts (2p3n) 4206 | -6/Factory | Discovered new exit (range 6) 4396 | -6/Factory | Entered another Factory area 4396 | -5/Factory | Evolved 2 slots: Utility x1, Weapon x1 5155 | -5/Factory | Core integrity fell below 50% 5169 | -5/Factory | Core integrity fell below 20% 5213 | -5/Factory | Lost 20 parts (4p5n5u6w) 5605 | -5/Factory | Fabricated Centrium Wheel (x2) 5640 | -5/Factory | Fabricated Centrium Wheel (x2) 5675 | -5/Factory | Fabricated Centrium Wheel (x2) 5765 | -5/Factory | Destroyed by P-70 Sage with High-powered Shock Rifle Last Messages --------------- 05640_ Acquired Centrium Wheel. 05646_ Connecting with Fabricator... >>Build Building Centrium Wheel... ETC: 29 05659_ System corrupted: Matter fused (-6). 05664_ K-01 Serf collects debris. 05675_ Fabricator completes Centrium Wheel. 05675_ Acquired Centrium Wheel. 05682_ Connecting with Fabricator... 05687_ Discarded System Shield. 05690_ Acquired Energy Well. 05722_ Acquired 63 matter. 05737_ Slammed into U-05 Engineer. 05737_ Destroyed Welding Torch. 05737_ U-05 Engineer system corrupted by crushing effect. 05737_ Destabilizing: System corrupted (+2). 05740_ K-01 Serf cleans the Fabricator. 05741_ System corrupted: Heat flow error (+270). 05759_ System corrupted: Matter fused (-8). Map ----- +----------------------------------------------------+ | ##??????????########????????????????????????????? | | ############ #????????????????????????????? | | ###??????????????????????????? | | ######## #??????????????????????????? | | +##?# # #??????????????????????????? | | ????# + #??????????????????????????? | | ????# # +??????????????????????????? | | ????# # #####+## #??????????????????????????? | | ????# | # #?# # ############???????????????? | | ????# # #?# ! + #??????????????? | | ????# # #?# # #??????????????? | | ????# # #?# # #??????????????? | | ????# # #?# + +??????????????? | | ????###### #?# ##########+####??????????????? | | ?????????# #?# #????????????????????????????? | | ?????????# #?# ! #????????????????????????????? | | ?????????# #?# #????????????????????????????? | | ?????????# #?##+###????????????????????????????? | | ?????????# #??# #??????????????????????????????? | | ?????????# ???# #??????????????????????????????? | | ?????????# ???# #??????????????????????????????? | | ?????????+ ???# #??????????????????????????????? | | ?????????# #### ###????#########???????????????? | | ?????????# #????# ! #???????????????? | | ?????????# ###### ! #???????????????? | | ?????????# @ ! #???????????????? | | ?????????# u # ! #???????????????? | | ?????????##k p !! # #???????????????? | | ??????????# "" "" != # #???????????????? | | ??????????# "F "" ! + #????#######????? | | ??????????# """"" # """#???? #????? | | ??????????# p # """#???" #????? | | ??????????# + F"#??? #????? | | ??????????# ####### ^^## ""#??"" " #????? | | ??????????# ??????# ^## ! #?? " +????? | | ??????????#???????# ##+#######? " #????? | | ??????????????????# ###### " #????? | | ??????????????????# + " +????? | | ??????????????????# ###### ! " #????? | | ??????????????????# #????? " #????? | | ??????????????????# ######? " #????? | | ??????????????????# #? " #????? | | ??????????????????# / #????? | | ??????????????????# # #????? | | ??????????????????# #?? #????? | | ???????????????? #??? #????? | | ????????????? #????## ###????? | | ???????????? #### #??????##??????? | | ???????????? ##########???# ?????????????? | | ??????????????????????????# ???????????? | +----------------------------------------------------+ Best States ------------- Heat Dissipation 56 Energy Generation 31 Energy Capacity 600 Matter Stores 300 Matter Capacity 300 Sight Range 16 Terrain Scan Range 16 Terrain Scan Density 85 Jamming Range 12 Cloak Strength 2 Armor Coverage 300 Resistance: TH 10 Resistance: EM 15 Weapon Shielding 66 Evasion (%) 50 Melee Accuracy 13 Core Analysis 6 Recoil Reduction 6 Defensive Hacking 10 Item Schematics ----------------- Imp. Heat Sink | -8/Materials | Scanalyzed Robot Schematics ------------------ None Fabricated ------------ Centrium Wheel | x2 | -5/Factory | Preloaded Centrium Wheel | x2 | -5/Factory | Preloaded Centrium Wheel | x2 | -5/Factory | Preloaded Alien Tech Used ----------------- None Achievements -------------- None Challenges ------------ None Game ------ Seed ManeuveringRagnarokAmplifier Manual? 0 Play Time 01:16:37 Cumulative 62.0 hours Start 2020.05.03 @ 13:40:03 End 2020.05.03 @ 14:54:42 Sessions 1 Manual Loads 0 Difficulty Rogue Special Mode None Game No. 58 Rogue 58 Adventurer 0 Explorer 0 Win Type - Total 0 Types 0/0/0/0/0/0/0 Lore% 25 Gallery% 40 Achievement% 26 Wizard Run 0 Options --------- ASCII 0 Keyboard 0 Movement Arrows Keybinds 0 Fullscreen 1 Font 14/Terminus Map View 72x54 Tactical HUD 1 Map Filters NONE Filters NONE Steam 1 RUN: 1f2dcb1b-88f2-4b0b-9065-5051e5b2467d